[Event "4NCL 2nd Div 2023-24"]
[Site "Daventry"]
[Date "2024.05.05"]
[Round "10.29"]
[White "Watson, Jacob"]
[Black "Samarakoon, Vivash Ransara"]
[Result "0-1"]
[ECO "B06"]
[WhiteElo "1902"]
[BlackElo "1980"]
[Annotator "NA RC"]
[PlyCount "98"]
[EventDate "2023.11.11"]
[EventType "team-tourn"]
[EventCountry "ENG"]
[SourceTitle "playchess.com"]
[Source "ChessBase"]
[SourceQuality "1"]
[TimeControl "40/6000+30:3000+30"]

1. e4 {[%emt 0:00:03]} g6 {[%emt 0:00:04]} 2. d4 {[%emt 0:00:54]} Bg7 {[%emt 0:00:04]} 3. Nf3 {[%emt 0:00:17]} d6 {[%emt 0:00:04]} 4. Bc4 {[%emt 0:03:40]} Nf6 {[%emt 0:00:06]} 5. Qe2 {[%emt 0:01:17]} O-O {[%emt 0:03:07]} 6. O-O {[%emt 0:01:26]} Bg4 {[%emt 0:01:59]} 7. Nbd2 {[%emt 0:02:05]} Nc6 {[%emt 0:00:19]} 8. c3 {[%emt 0:01:27]} e5 {[%emt 0:01:24]} 9. d5 {[%emt 0:03:06]} Ne7 {[%emt 0:00:03]} 10. h3 {[%emt 0:01:14]} Bd7 {[%emt 0:00:35]} 11. Rd1 {[%emt 0:17:39]} Nh5 {[%emt 0:21:56]} 12. Nf1 {[%emt 0:01:50]} Qc8 {[%emt 0:03:54]} 13. Bb5 {[%emt 0:07:45]} h6 {[%emt 0:12:03]} 14. Bxd7 {[%emt 0:03:12]} Qxd7 {[%emt 0:00:04]} 15. N3h2 {[%emt 0:01:26]} f5 {[%emt 0:00:50]} 16. exf5 {[%emt 0:04:23]} Rxf5 {[%emt 0:00:10]} 17. Ng4 {[%emt 0:05:14]} Kh7 {[%emt 0:06:42]} 18. Qd2 {[%emt 0:13:33]} Raf8 {[%emt 0:01:32]} 19. f3 {[%emt 0:02:03]} Nf4 {[%emt 0:04:22]} 20. Ng3 {[%emt 0:03:48]} h5 {[%emt 0:05:08]} 21. Nxf5 {[%emt 0:02:53]} Nxf5 {[%emt 0:00:09]} 22. Qf2 {[%emt 0:02:23]} hxg4 {[%emt 0:00:58]} 23. hxg4 {[%emt 0:00:13]} Nh6 {[%emt 0:01:50]} 24. Qh4 {[%emt 0:04:19]} g5 {[%emt 0:01:43]} 25. Qe1 {[%emt 0:01:53]} Bf6 {[%emt 0:25:01]} 26. Be3 {[%emt 0:05:50]} Kg7 {[%emt 0:03:10]} 27. g3 {[%emt 0:04:48]} Ng6 {[%emt 0:05:22]} 28. Bf2 {[%emt 0:05:05]} Nxg4 {[%emt 0:02:36]} 29. fxg4 {[%emt 0:01:32]} Qxg4 {[%emt 0:00:04]} 30. Kf1 {[%emt 0:02:38]} Bd8 {[%emt 0:03:15]} 31. Rd3 {[%emt 0:01:45]} e4 {[%emt 0:01:23]} 32. Re3 {[%emt 0:00:19]} Ne5 {[%emt 0:01:35]} 33. Rxe4 {[%emt 0:02:47]} Qh3+ {[%emt 0:02:19]} 34. Ke2 {[%emt 0:00:07]} Qg2 {[%emt 0:00:13]} 35. Rxe5 {[%emt 0:00:31]} dxe5 {[%emt 0:00:18]} 36. Qg1 {[%emt 0:03:18]} Qe4+ {[%emt 0:01:09]} 37. Be3 {[%emt 0:00:33]} Qxd5 {[%emt 0:01:14]} 38. Rd1 {[%emt 0:00:45]} Qb5+ {[%emt 0:00:17]} 39. Ke1 {[%emt 0:00:25]} Qxb2 {[%emt 0:00:21]} 40. Rd7+ {[%emt 0:00:47]} Kg6 {[%emt 0:00:29]} 41. Qh1 {[%emt 0:05:33]} Qa1+ {[%emt 0:00:33]} 42. Rd1 {[%emt 0:00:07]} Qxc3+ {[%emt 0:00:06]} 43. Ke2 {[%emt 0:00:49]} Qc4+ {[%emt 0:00:21]} 44. Ke1 {[%emt 0:01:05]} Be7 {[%emt 0:00:24]} 45. Qg2 {[%emt 0:08:54]} Bb4+ {[%emt 0:05:17]} 46. Bd2 {[%emt 0:01:23]} Qd3 {[%emt 0:00:52]} 47. Bxb4 {[%emt 0:01:21]} Qe3+ {[%emt 0:00:10]} 48. Qe2 {[%emt 0:01:44]} Qxg3+ {[%emt 0:00:08]} 49. Kd2 {[%emt 0:00:03]} Rf2 {[%emt 0:00:18]} 0-1

[Event "4NCL 2nd Div 2023-24"]
[Site "Daventry"]
[Date "2024.05.05"]
[Round "10.30"]
[White "Walker, Martin G"]
[Black "Lim, Mark"]
[Result "1-0"]
[ECO "C65"]
[WhiteElo "2033"]
[BlackElo "2265"]
[Annotator "RC"]
[PlyCount "113"]
[EventDate "2023.11.11"]
[EventType "team-tourn"]
[EventCountry "ENG"]
[SourceTitle "playchess.com"]
[Source "ChessBase"]
[SourceQuality "1"]
[TimeControl "40/6000+30:3000+30"]

1. e4 {[%emt 0:00:01]} e5 {[%emt 0:04:16]} 2. Nf3 {[%emt 0:00:26]} Nc6 {[%emt 0:00:07]} 3. Bb5 {[%emt 0:00:35]} Nf6 {[%emt 0:00:05]} 4. d3 {[%emt 0:00:04]} Bc5 {[%emt 0:00:04]} 5. O-O {[%emt 0:00:32]} O-O {[%emt 0:08:37]} 6. Bxc6 {[%emt 0:04:16]} bxc6 {[%emt 0:03:52]} 7. Nxe5 {[%emt 0:00:05]} d5 {[%emt 0:00:59]} 8. d4 {[%emt 0:05:02]} Bb6 {[%emt 0:01:39]} 9. exd5 {[%emt 0:02:03]} Qxd5 {[%emt 0:01:34]} 10. Be3 {[%emt 0:06:54]} Ba6 {[%emt 0:05:07]} 11. Re1 {[%emt 0:00:03]} Ba5 {[%emt 0:03:15]} 12. c3 {[%emt 0:08:52]} c5 {[%emt 0:02:37]} 13. Qf3 {[%emt 0:06:02]} Rfe8 {[%emt 0:03:19]} 14. Nd2 {[%emt 0:03:20]} cxd4 {[%emt 0:03:49]} 15. Bxd4 {[%emt 0:01:28]} Qb5 {[%emt 0:03:43]} 16. Ndc4 {[%emt 0:18:09]} Bb7 {[%emt 0:02:53]} 17. a4 {[%emt 0:00:37]} Qa6 {[%emt 0:00:50]} 18. Qg3 {[%emt 0:01:48]} c5 {[%emt 0:04:46]} 19. Bxc5 {[%emt 0:17:25]} Ne4 {[%emt 0:01:47]} 20. Rxe4 {[%emt 0:04:43]} Bxe4 {[%emt 0:01:27]} 21. Nd6 {[%emt 0:00:05]} f6 {[%emt 0:03:29]} 22. Ng4 {[%emt 0:04:06]} Bg6 {[%emt 0:07:16]} 23. Nxe8 {[%emt 0:00:06]} Rxe8 {[%emt 0:00:20]} 24. Ne3 {[%emt 0:00:20]} Qb7 {[%emt 0:01:22]} 25. b4 {[%emt 0:01:44]} Bc7 {[%emt 0:01:04]} 26. Bd6 {[%emt 0:02:13]} Bb6 {[%emt 0:01:21]} 27. a5 {[%emt 0:03:48]} Bxe3 {[%emt 0:02:39]} 28. fxe3 {[%emt 0:00:05]} Qe4 {[%emt 0:02:38]} 29. Bc5 {[%emt 0:00:34]} Re5 {[%emt 0:04:59]} 30. Rd1 {[%emt 0:07:34]} h6 {[%emt 0:07:43]} 31. h4 {[%emt 0:05:01]} Qc2 {[%emt 0:10:18]} 32. Rd4 {[%emt 0:01:53]} h5 {[%emt 0:04:02]} 33. Kh2 {[%emt 0:01:07]} Kh7 {[%emt 0:01:53]} 34. Rf4 {[%emt 0:02:03]} Rd5 {[%emt 0:03:45]} 35. Bd4 {[%emt 0:00:16]} a6 {[%emt 0:01:07]} 36. Qf3 {[%emt 0:00:20]} Rd6 {[%emt 0:00:57]} 37. Qb7 {[%emt 0:00:41]} Re6 {[%emt 0:01:42]} 38. Bxf6 {[%emt 0:01:30]} Rxf6 {[%emt 0:00:29]} 39. Rxf6 {[%emt 0:00:05]} Be4 {[%emt 0:00:20]} 40. Rf2 {[%emt 0:00:13]} Qd3 {[%emt 0:04:25]} 41. Qe7 {[%emt 0:10:34]} Bd5 {[%emt 0:02:43]} 42. Qe5 {[%emt 0:00:18]} Qc4 {[%emt 0:01:41]} 43. Qxh5+ {[%emt 0:05:25]} Kg8 {[%emt 0:00:05]} 44. Qe8+ {[%emt 0:00:04]} Kh7 {[%emt 0:00:10]} 45. Qh5+ {[%emt 0:00:03]} Kg8 {[%emt 0:00:24]} 46. Rf5 {[%emt 0:00:04]} Qc7+ {[%emt 0:02:34]} 47. Kh1 {[%emt 0:00:09]} Bxg2+ {[%emt 0:04:36]} 48. Kxg2 {[%emt 0:00:09]} Qc6+ {[%emt 0:01:08]} 49. Qf3 {[%emt 0:00:46]} Qg6+ {[%emt 0:01:12]} 50. Kh1 {[%emt 0:00:07]} Qh6 {[%emt 0:01:31]} 51. Rf8+ {[%emt 0:00:26]} Kh7 {[%emt 0:00:04]} 52. Qf5+ {[%emt 0:00:04]} g6 {[%emt 0:00:34]} 53. Qd7+ {[%emt 0:00:06]} Qg7 {[%emt 0:00:21]} 54. Rf7 {[%emt 0:00:05]} g5 {[%emt 0:00:15]} 55. Rxg7+ {[%emt 0:00:19]} Kh6 {[%emt 0:00:14]} 56. Rh7+ {[%emt 0:00:13]} Kg6 {[%emt 0:00:12]} 57. Qf7# {[%emt 0:00:51]} 1-0

[Event "4NCL 2nd Div 2023-24"]
[Site "Daventry"]
[Date "2024.05.05"]
[Round "10.31"]
[White "Phillips, William"]
[Black "Myall, Ivan J"]
[Result "1-0"]
[ECO "D44"]
[WhiteElo "1873"]
[BlackElo "1932"]
[Annotator "NA RC"]
[PlyCount "73"]
[EventDate "2023.11.11"]
[EventType "team-tourn"]
[EventCountry "ENG"]
[SourceTitle "playchess.com"]
[Source "ChessBase"]
[SourceQuality "1"]
[TimeControl "40/6000+30:3000+30"]

1. d4 {[%emt 0:00:30]} d5 {[%emt 0:00:13]} 2. Nf3 {[%emt 0:00:07]} Nf6 {[%emt 0:00:13]} 3. c4 {[%emt 0:00:07]} c6 {[%emt 0:00:16]} 4. Nc3 {[%emt 0:01:02]} e6 {[%emt 0:00:41]} 5. Bg5 {[%emt 0:01:41]} dxc4 {[%emt 0:03:03]} 6. e4 {[%emt 0:15:20]} b5 {[%emt 0:00:14]} 7. e5 {[%emt 0:00:50]} h6 {[%emt 0:00:05]} 8. Bxf6 {[%emt 0:07:01]} gxf6 {[%emt 0:00:08]} 9. Be2 {[%emt 0:00:11]} f5 {[%emt 0:03:18]} 10. a4 {[%emt 0:05:52]} b4 {[%emt 0:06:11]} 11. Nb1 {[%emt 0:02:02]} Rg8 {[%emt 0:01:27]} 12. g3 {[%emt 0:01:02]} Qd5 {[%emt 0:04:46]} 13. Qc2 {[%emt 0:07:18]} Ba6 {[%emt 0:06:55]} 14. Nbd2 {[%emt 0:03:59]} c3 {[%emt 0:25:14]} 15. bxc3 {[%emt 0:01:35]} Bxe2 {[%emt 0:00:45]} 16. Kxe2 {[%emt 0:00:25]} Na6 {[%emt 0:02:44]} 17. c4 {[%emt 0:05:48]} Qd7 {[%emt 0:00:25]} 18. c5 {[%emt 0:02:04]} Rg4 {[%emt 0:10:47]} 19. Rhd1 {[%emt 0:09:47]} Nc7 {[%emt 0:01:29]} 20. h3 {[%emt 0:05:25]} Rg8 {[%emt 0:01:00]} 21. Nc4 {[%emt 0:07:25]} Nd5 {[%emt 0:00:28]} 22. Rd3 {[%emt 0:00:31]} Be7 {[%emt 0:01:09]} 23. Nd6+ {[%emt 0:03:35]} Kf8 {[%emt 0:00:12]} 24. Rg1 {[%emt 0:07:59]} h5 {[%emt 0:01:41]} 25. Qd2 {[%emt 0:02:39]} Rg6 {[%emt 0:03:53]} 26. Kf1 {[%emt 0:03:11]} Kg7 {[%emt 0:01:45]} 27. Nh4 {[%emt 0:03:53]} Bxh4 {[%emt 0:03:24]} 28. gxh4 {[%emt 0:00:02]} Qe7 {[%emt 0:03:35]} 29. Rdg3 {[%emt 0:02:58]} Qxh4 {[%emt 0:01:27]} 30. Nxf7 {[%emt 0:01:19]} Rxg3 {[%emt 0:06:53]} 31. Qh6+ {[%emt 0:00:30]} Kxf7 {[%emt 0:00:06]} 32. Rxg3 {[%emt 0:02:44]} Rf8 {[%emt 0:03:56]} 33. Rg7+ {[%emt 0:01:49]} Ke8 {[%emt 0:00:08]} 34. Qxe6+ {[%emt 0:00:11]} Ne7 {[%emt 0:00:16]} 35. Qd6 {[%emt 0:02:30]} Rf7 {[%emt 0:09:24]} 36. Qb8+ {[%emt 0:00:38]} Kd7 {[%emt 0:00:05]} 37. e6+ {[%emt 0:00:15]} 1-0

[Event "4NCL 2nd Div 2023-24"]
[Site "Daventry"]
[Date "2024.05.06"]
[Round "11.1"]
[White "Wall, Gavin"]
[Black "McClement, Andrew"]
[Result "1/2-1/2"]
[ECO "A45"]
[WhiteElo "2281"]
[BlackElo "2185"]
[Annotator "TA"]
[PlyCount "55"]
[EventDate "2023.11.11"]
[EventType "team-tourn"]
[EventCountry "ENG"]
[SourceTitle "playchess.com"]
[Source "ChessBase"]
[SourceQuality "1"]
[TimeControl "40/6000+30:3000+30"]

{[%evp 11,55,-4,13,-21,-27,-21,-8,-51,0,-46,-56,-80,-83,-88,0,0,1,0,0,6,8,-18,-17,-26,-20,-27,-23,-18,-14,-25,-27,-41,-39,-43,-50,-61,-51,-52,-21,-14,0,0,0,-25,0,0]} 1. d4 {[%emt 0:00:04]} Nf6 {[%emt 0:00:01]} 2. Bg5 {[%emt 0:00:17]} e6 {[%emt 0:00:06]} 3. e4 {[%emt 0:01:06]} h6 {[%emt 0:00:17]} 4. Bxf6 {[%emt 0:00:04]} Qxf6 {[%emt 0:00:04]} 5. Nc3 {[%emt 0:00:16]} Bb4 {[%emt 0:00:20]} 6. Qd2 {[%emt 0:02:48] [#]} d5 $1 {[%emt 0:08:02]} 7. e5 {[%emt 0:03:00]} (7. Nge2 dxe4) 7... Qd8 {[%emt 0:00:15]} 8. Nge2 {[%emt 0:05:17]} b6 {[%emt 0:06:22]} 9. Nf4 {[%emt 0:23:32]} O-O {[%emt 0:03:30]} (9... Be7 $15) 10. a3 {[%emt 0:03:27]} (10. h4 $1 $11) 10... Be7 $15 {[%emt 0:04:24]} 11. Nd1 {[%emt 0:02:07]} c5 {[%emt 0:01:20]} 12. c3 {[%emt 0:00:03]} Ba6 {[%emt 0:00:37]} (12... Bg5 $17 {...cxd4 is the strong threat.} 13. h4 Bxh4) 13. Bxa6 $11 {[%emt 0:01:30]} Nxa6 {[%emt 0:00:01]} 14. Ne3 {[%emt 0:00:46]} Rc8 {[%emt 0:00:38]} 15. Qe2 {[%emt 0:12:15]} Nb8 {[%emt 0:00:47][%cal Ba6b8,Bb8c6,Bc6a5,Ba5c4][%mdl 32]} 16. Qg4 {[%emt 0:01:49]} Nc6 {[%emt 0:03:13]} 17. Rd1 {[%emt 0:00:38]} cxd4 {[%emt 0:05:15]} 18. cxd4 {[%emt 0:00:20]} Na5 {[%emt 0:00:17]} 19. h4 {[%emt 0:15:09] Nh5 would now be deadly.} Nc4 {[%emt 0:02:35]} 20. Nxc4 {[%emt 0:00:56]} Rxc4 {[%emt 0:00:23]} 21. Rh3 {[%emt 0:08:01] [#] And now Rg3 would win.} Kh8 {[%emt 0:02:59]} 22. Rg3 {[%emt 0:05:20][%csl Gg3][%cal Rg4g7]} Rg8 {[%emt 0:00:41]} 23. h5 {[%emt 0:00:04]} Rc2 {[%emt 0:02:54]} 24. Nd3 {[%emt 0:00:19]} b5 {[%emt 0:01:01]} 25. Rf3 {[%emt 0:02:05]} Rf8 {[%emt 0:00:55]} 26. Rg3 {[%emt 0:00:31][%csl Gg3][%cal Rg4g7]} Rg8 {[%emt 0:00:36]} 27. Rf3 {[%emt 0:00:11]} Rf8 {[%emt 0:02:24]} 28. Rg3 {[%emt 0:03:05] Weighted Error Value: White=0.11 (very precise) /Black=0.13 (very precise) .  Mistake:       	White=1     	Black=2      Inaccurate:     	White=2     	Black=1      OK:         	White=5     	Black=9      Best:        	White=1     	Black=1} 1/2-1/2

[Event "4NCL 2nd Div 2023-24"]
[Site "Daventry"]
[Date "2024.05.06"]
[Round "11.2"]
[White "Gallagher, Daniel GH"]
[Black "Delaney, Killian"]
[Result "1/2-1/2"]
[ECO "B11"]
[WhiteElo "2234"]
[BlackElo "2271"]
[Annotator "RC"]
[PlyCount "105"]
[EventDate "2023.11.11"]
[EventType "team-tourn"]
[EventCountry "ENG"]
[SourceTitle "playchess.com"]
[Source "ChessBase"]
[SourceQuality "1"]
[TimeControl "40/6000+30:3000+30"]

1. e4 {[%emt 0:00:04]} c6 {[%emt 0:00:12]} 2. Nf3 {[%emt 0:00:08]} d5 {[%emt 0:00:07]} 3. Nc3 {[%emt 0:00:20]} Bg4 {[%emt 0:00:20]} 4. h3 {[%emt 0:00:05]} Bxf3 {[%emt 0:00:09]} 5. Qxf3 {[%emt 0:00:06]} e6 {[%emt 0:00:08]} 6. g3 {[%emt 0:00:28]} Nf6 {[%emt 0:01:40]} 7. Bg2 {[%emt 0:00:18]} dxe4 {[%emt 0:00:17]} 8. Nxe4 {[%emt 0:00:07]} Nxe4 {[%emt 0:00:37]} 9. Qxe4 {[%emt 0:00:10]} Qd5 {[%emt 0:00:11]} 10. d3 {[%emt 0:00:32]} Nd7 {[%emt 0:01:42]} 11. Kf1 {[%emt 0:09:07]} Nf6 {[%emt 0:02:24]} 12. Qe2 {[%emt 0:02:40]} Qd7 {[%emt 0:00:20]} 13. Bd2 {[%emt 0:06:39]} Be7 {[%emt 0:03:24]} 14. h4 {[%emt 0:04:38]} h5 {[%emt 0:00:34]} 15. Bf3 {[%emt 0:00:24]} g6 {[%emt 0:08:47]} 16. Bc3 {[%emt 0:10:40]} Rg8 {[%emt 0:07:32]} 17. Kg2 {[%emt 0:05:27]} Nd5 {[%emt 0:00:51]} 18. Be5 {[%emt 0:05:45]} f6 {[%emt 0:06:48]} 19. Bc3 {[%emt 0:01:27]} O-O-O {[%emt 0:00:54]} 20. Ba5 {[%emt 0:05:47]} Rde8 {[%emt 0:04:07]} 21. c4 {[%emt 0:03:09]} Nc7 {[%emt 0:00:35]} 22. Qe3 {[%emt 0:03:57]} Kb8 {[%emt 0:01:49]} 23. b4 {[%emt 0:03:15]} e5 {[%emt 0:00:29]} 24. b5 {[%emt 0:03:25]} cxb5 {[%emt 0:00:26]} 25. Rab1 {[%emt 0:16:14]} Qd4 {[%emt 0:00:17]} 26. Qe2 {[%emt 0:11:28]} b6 {[%emt 0:01:31]} 27. Bc3 {[%emt 0:06:00]} Qxc3 {[%emt 0:00:07]} 28. Qe4 {[%emt 0:00:02]} Kc8 {[%emt 0:00:01]} 29. Qb7+ {[%emt 0:00:33]} Kd7 {[%emt 0:02:24]} 30. Rxb5 {[%emt 0:04:52]} Bd6 {[%emt 0:10:18]} 31. Rd5 {[%emt 0:00:25]} e4 {[%emt 0:00:22]} 32. dxe4 {[%emt 0:00:53]} Qxc4 {[%emt 0:01:27]} 33. Rhd1 {[%emt 0:00:47]} Re6 {[%emt 0:00:03]} 34. R5d4 {[%emt 0:02:59]} Qc5 {[%emt 0:12:23]} 35. Rd5 {[%emt 0:02:18]} Qc4 {[%emt 0:08:55]} 36. R5d4 {[%emt 0:00:23]} Qc5 {[%emt 0:00:15]} 37. Rd5 {[%emt 0:00:05]} Qc6 {[%emt 0:23:21]} 38. Qxc6+ {[%emt 0:00:33]} Kxc6 {[%emt 0:00:02]} 39. e5 {[%emt 0:00:19]} Nxd5 {[%emt 0:00:23]} 40. Bxd5+ {[%emt 0:00:08]} Kd7 {[%emt 0:00:04]} 41. Bxe6+ {[%emt 0:50:26]} Kxe6 {[%emt 0:50:03]} 42. Rxd6+ {[%emt 0:00:19]} Kxe5 {[%emt 0:00:03]} 43. Rd7 {[%emt 0:00:08]} Ra8 {[%emt 0:01:39]} 44. Rg7 {[%emt 0:00:00]} b5 {[%emt 0:00:00]} 45. Rxg6 {[%emt 0:00:00]} b4 {[%emt 0:00:00]} 46. g4 {[%emt 0:00:00]} a5 {[%emt 0:00:00]} 47. gxh5 {[%emt 0:00:00]} a4 {[%emt 0:00:00]} 48. h6 {[%emt 0:00:00]} b3 {[%emt 0:00:00]} 49. axb3 {[%emt 0:00:00]} axb3 {[%emt 0:00:00]} 50. Rg3 {[%emt 0:00:00]} Rb8 {[%emt 0:00:00]} 51. h7 {[%emt 0:00:00]} b2 {[%emt 0:00:00]} 52. h8=Q {[%emt 0:00:00]} Rxh8 {[%emt 0:00:00]} 53. Rb3 {[%emt 0:00:00]} 1/2-1/2

[Event "4NCL 2nd Div 2023-24"]
[Site "Daventry"]
[Date "2024.05.06"]
[Round "11.3"]
[White "Li, Henry"]
[Black "Hill, Alistair"]
[Result "0-1"]
[ECO "B22"]
[WhiteElo "2288"]
[BlackElo "2122"]
[Annotator "TA"]
[PlyCount "108"]
[EventDate "2023.11.11"]
[EventType "team-tourn"]
[EventCountry "ENG"]
[SourceTitle "playchess.com"]
[Source "ChessBase"]
[SourceQuality "1"]
[TimeControl "40/6000+30:3000+30"]

{[%evp 19,108,12,0,4,0,0,33,-13,28,15,57,40,40,42,85,21,41,39,50,31,23,34,29,0,0,-5,-12,-29,0,-7,-6,-70,-76,-69,-39,-148,-42,-46,-39,-43,-16,-11,-14,-9,-6,-8,-16,-15,-15,-19,-3,0,-8,-8,-2,-5,0,-11,0,-37,0,0,78,0,0,0,20,0,-8,-65,-65,-95,-97,-319,-327,-412,-394,-533,-506,-677,-669,-1061,-1039,-29949,-29952,-29951,-29948,-6558,-6558,-29980,-29981]} 1. e4 {[%emt 0:00:25]} c6 {[%emt 0:00:05]} 2. c4 {[%emt 0:01:49]} d5 {[%emt 0:00:07]} 3. cxd5 {[%emt 0:00:40]} cxd5 {[%emt 0:00:24]} 4. exd5 {[%emt 0:00:06]} Nf6 {[%emt 0:00:35]} 5. Nc3 {[%emt 0:00:06]} Nxd5 {[%emt 0:01:07]} 6. d4 {[%emt 0:01:58]} Nc6 {[%emt 0:01:59]} 7. Bc4 {[%emt 0:01:56]} Nb6 {[%emt 0:01:10]} 8. Bb5 {[%emt 0:00:22]} Bd7 {[%emt 0:04:07]} 9. Nf3 {[%emt 0:01:05]} e6 {[%emt 0:04:01]} 10. O-O {[%emt 0:02:42]} Be7 {[%emt 0:00:05]} 11. Re1 {[%emt 0:01:28]} O-O {[%emt 0:00:07]} 12. a3 {[%emt 0:04:46]} Nd5 {[%emt 0:12:27]} 13. Ne4 {[%emt 0:05:30]} (13. Bc4 $14) 13... Nf6 {[%emt 0:13:17]} 14. Bd3 {[%emt 0:08:06]} Nxe4 {[%emt 0:01:42]} 15. Bxe4 {[%emt 0:01:01]} Bf6 {[%emt 0:00:07]} 16. Bf4 {[%emt 0:07:42]} Qb6 {[%emt 0:20:33][%csl LRb2,LRd4][%cal Rc6d4]} 17. Be5 {[%emt 0:08:08]} (17. Re3 $16) 17... Be7 {[%emt 0:12:16]} 18. Re3 {[%emt 0:07:35]} f5 {[%emt 0:10:57]} 19. Bc2 {[%emt 0:05:52]} Nxe5 {[%emt 0:01:19]} 20. Nxe5 {[%emt 0:00:16]} Rad8 {[%emt 0:02:07]} 21. Rb3 {[%emt 0:15:32]} Qc7 {[%emt 0:01:16]} 22. Rc1 {[%emt 0:00:42][%cal Oc2f5] aiming for Bxf5!} Bg5 {[%emt 0:03:45]} 23. Rc3 {[%emt 0:03:17]} Qd6 {[%emt 0:02:24]} 24. Ra1 {[%emt 0:01:34]} Bf6 {[%emt 0:01:45]} 25. f4 {[%emt 0:02:25]} (25. Bb3 $11) 25... Bc6 $15 {[%emt 0:01:14]} 26. Bb3 {[%emt 0:01:00]} Bd5 {[%emt 0:04:40]} (26... Qxd4+ $2 27. Qxd4 Rxd4 28. Bxe6+ $18) 27. Rd3 {[%emt 0:00:39] [#]} (27. Kh1 $15) 27... Qb6 {[%emt 0:04:59]} (27... Be4 $1 $17 28. Rc3 g5 (28... Qxd4+ $2 29. Qxd4 Rxd4 30. Bxe6+ $18)) 28. Rc1 $1 {[%emt 0:04:24]} Bxe5 {[%emt 0:01:12]} 29. fxe5 {[%emt 0:00:22]} Rf7 {[%emt 0:03:20]} 30. Bxd5 {[%emt 0:07:50]} Rxd5 {[%emt 0:00:02]} 31. Qb3 {[%emt 0:00:42]} Rc7 {[%emt 0:02:01]} (31... Rxd4 $2 32. Qxb6 axb6 33. Rc8+ (33. Rxd4 g5 $18) 33... Rf8 34. Rxf8+ (34. Rxd4 Rxc8 35. b4 b5 $11) 34... Kxf8 35. Rxd4 $18) 32. Rxc7 {[%emt 0:00:32]} Qxc7 $11 {[%emt 0:00:02][%mdl 4096] Endgame. KQR-KQR} 33. Rc3 {[%emt 0:00:46]} Qd7 {[%emt 0:00:13]} 34. Qc4 {[%emt 0:00:40]} h6 {[%emt 0:00:21]} 35. Qc8+ {[%emt 0:02:04]} Kh7 {[%emt 0:00:27]} 36. Qxd7 {[%emt 0:00:32]} Rxd7 {[%emt 0:00:03] KR-KR} 37. Rc4 {[%emt 0:00:30]} b5 {[%emt 0:02:04]} 38. Rb4 {[%emt 0:02:57]} Rd5 {[%emt 0:00:22]} 39. a4 {[%emt 0:00:15]} a6 {[%emt 0:00:43]} 40. Kf2 {[%emt 0:03:02]} Kg6 {[%emt 0:00:24] [#]} (40... a5 41. Rxb5 Rxd4 42. Rxa5) (40... bxa4 $11 {remains equal.} 41. Rxa4 a5) 41. Ke3 {[%emt 0:51:30]} (41. axb5 $1 $16 axb5 42. Ke3) 41... Kf7 {[%emt 0:03:44]} (41... a5 $2 42. Rxb5 Rd8 43. Rxa5 $18) 42. Rb3 {[%emt 0:00:00]} Ke7 {[%emt 0:02:20]} 43. Rc3 {[%emt 0:00:00]} bxa4 {[%emt 0:05:35]} 44. Rc7+ {[%emt 0:00:00]} ({White should try} 44. Kd3 $1 $11) 44... Rd7 $15 {[%emt 0:00:20]} 45. Rc6 {[%emt 0:00:00][%cal Oe3d3]} Rb7 {[%emt 0:00:37]} 46. d5 $2 {[%emt 0:00:00] Loses the game.} (46. Rxa6 $17 Rb3+ (46... Rxb2 47. Ra7+ Kf8 48. Ra8+ Ke7 49. Ra7+ Kf8 50. Rxa4 $11) 47. Ke2) 46... exd5 $19 {[%emt 0:00:27]} (46... Rxb2 47. Rxe6+ (47. dxe6 $2 {too greedy.} a5 $19) 47... Kd8 48. Rxa6 $11) 47. Kd4 {[%emt 0:00:00]} Rxb2 {[%emt 0:01:07]} 48. Rxa6 {[%emt 0:00:00]} Rd2+ {[%emt 0:04:11]} 49. Kc5 {[%emt 0:00:00]} Rxg2 {[%emt 0:00:08] Threatens to win with ...Rd2.} 50. h4 {[%emt 0:00:00]} Rd2 {[%emt 0:02:56] And now ...f4 would win.} 51. h5 {[%emt 0:00:00]} f4 {[%emt 0:00:36]} 52. Rxa4 {[%emt 0:00:00]} f3 {[%emt 0:00:07]} 53. Rf4 {[%emt 0:00:00]} f2 {[%emt 0:00:06] ( -> ...Ke6)} 54. Rf3 {[%emt 0:00:00]} Ke6 {[%emt 0:00:07] Weighted Error Value: White=0.59/Black=0.15 (very precise) .  Loses game:     	White=1     	---        Mistake:       	White=6     	Black=2      Inaccurate:     	White=7     	Black=8      OK:         	White=10    	Black=13     Best:        	White=2     	Black=4      Strong:       	White=1     	---} 0-1